fUSD/lending_fUSD_20250426
["ID","MTS","AMOUNT","RATE_DAILY","PERIOD"]
[359042484,1745670194798,-500.0,0.00019999,2]
[359042485,1745670194822,-500.0,0.00019999,2]
[359042486,1745670194847,-500.0,0.00019999,2]
[359042487,1745670194871,-500.0,0.00019999,2]
[359042488,1745670194912,-500.0,0.00019999,2]
[359042489,1745670194938,-500.0,0.00019999,2]
[359042490,1745670194965,-500.0,0.00019999,2]
[359042491,1745670194990,-500.0,0.00019999,2]
[359042492,1745670195014,-500.0,0.00019999,2]
[359042493,1745670195039,-500.0,0.00019999,2]
[359042494,1745670195063,-500.0,0.00019999,2]
[359042495,1745670195089,-500.0,0.00019999,2]
[359042496,1745670195113,-500.0,0.00019999,2]
[359042497,1745670195138,-299.06638074,0.00019999,2]
[359042498,1745670195164,-151.0,0.00019999,2]
[359042499,1745670195190,-151.0,0.00019999,2]
[359042500,1745670195215,-151.0,0.00019999,2]
[359042501,1745670195240,-151.0,0.00019999,2]
[359042502,1745670195265,-179.967894,0.00019999,2]
[359042503,1745670195289,-179.967894,0.00019999,2]
[359042504,1745670195314,-179.967894,0.00019999,2]
[359042505,1745670195338,-179.967894,0.00019999,2]
[359042506,1745670195363,-151.0,0.00019999,2]
[359042507,1745670195388,-248.99857,0.00019999,2]
[359042508,1745670195419,-248.99857,0.00019999,2]
[359042509,1745670195446,-151.0,0.00019999,2]
[359042510,1745670195471,-248.99857,0.00019999,2]
[359042511,1745670195497,-248.99857,0.00019999,2]
[359042512,1745670195522,-151.0,0.00019999,2]
[359042513,1745670195548,-155.5311,0.00019999,2]
[359042514,1745670195573,-151.0,0.00019999,2]
[359042515,1745670195597,-186.130243,0.00019999,2]
[359042516,1745670195845,-186.130243,0.00019999,2]
[359042517,1745670195871,-766.402491,0.00019999,2]
[359042518,1745670195895,-766.402491,0.00019999,2]
[359042519,1745670195918,-766.402491,0.00019999,2]
[359042520,1745670195943,-766.402491,0.00019999,2]
[359042521,1745670195968,-151.0,0.00019999,2]
[359042522,1745670195991,-270.847627,0.00019999,2]
[359042523,1745670196014,-500.0,0.00019999,2]
[359042524,1745670196038,-500.0,0.00019999,2]
[359042525,1745670196062,-215.28252671,0.00019999,2]
[359042526,1745670196087,-169.11109,0.00019999,2]
[359042527,1745670196110,-207.069999,0.00019999,2]
[359042528,1745670196134,-169.11109,0.00019999,2]
[359042529,1745670196158,-207.069999,0.00019999,2]
[359042530,1745670196183,-538.44,0.00019999,2]
[359042531,1745670196206,-538.44,0.00019999,2]
[359042532,1745670196229,-538.44,0.00019999,2]
[359042533,1745670196252,-538.44,0.00019999,2]
[359042534,1745670196276,-538.44,0.00019999,2]
[359042535,1745670196299,-538.44,0.00019999,2]
[359042536,1745670196324,-538.44,0.00019999,2]
[359042537,1745670196347,-538.44,0.00019999,2]
[359042538,1745670196371,-538.44,0.00019999,2]
[359042539,1745670196394,-538.44,0.00019999,2]
[359042540,1745670196419,-538.44,0.00019999,2]
[359042541,1745670196444,-538.44,0.00019999,2]
[359042542,1745670196469,-151.0,0.00019999,2]
[359042543,1745670196494,-538.48117237,0.00019999,2]
[359042544,1745670196519,-151.0,0.00019999,2]
[359042545,1745670196547,-1100.987267,0.00019999,2]
[359042546,1745670196571,-1100.987267,0.00019999,2]
[359042547,1745670196594,-828.02,0.00019999,2]
[359042548,1745670196620,-828.02,0.00019999,2]
[359042549,1745670196645,-828.02,0.00019999,2]
[359042550,1745670196669,-828.02,0.00019999,2]
[359042551,1745670196693,-828.02,0.00019999,2]
[359042552,1745670196717,-828.02,0.00019999,2]
[359042553,1745670196741,-828.02,0.00019999,2]
[359042554,1745670196764,-828.02,0.00019999,2]
[359042555,1745670196793,-828.02,0.00019999,2]
[359042556,1745670196819,-828.02,0.00019999,2]
[359042557,1745670196844,-828.02,0.00019999,2]
[359042558,1745670196869,-828.02,0.00019999,2]
[359042559,1745670196894,-828.13602455,0.00019999,2]
[359042560,1745670196919,-218.501626,0.00019999,2]
[359042561,1745670196945,-267.719604,0.00019999,2]
[359042562,1745670196972,-218.501626,0.00019999,2]
[359042563,1745670196997,-267.719604,0.00019999,2]
[359042564,1745670197023,-1147.885923,0.00019999,2]
[359042565,1745670197047,-1147.885923,0.00019999,2]
[359042566,1745670197072,-161569.90835765,0.0002,2]
[359042567,1745670197652,-1152859.19833333,0.0002,2]
[359042568,1745670198055,-1152859.19833333,0.0002,2]
[359042569,1745670198906,-1152859.19833333,0.0002,2]
[359042570,1745670277961,153.68,0.00019039,2]
[359042571,1745670287955,-1363.6041313,0.00019799,2]
[359042572,1745670287983,-169.737325,0.0001987,2]
[359042573,1745670288013,-192.14581595,0.000199,3]
[359042574,1745670288044,-3922.00844504,0.000199,2]
[359042575,1745670288073,-679.27972419,0.000199,2]
[359042576,1745670288104,-204.49793771,0.000199,2]
[359042577,1745670288135,-300.0,0.00019969,2]
[359042578,1745670288168,-227.0,0.00019969,2]
[359042579,1745670288199,-4366.97,0.0001997,2]
[359042580,1745670288230,-470.04,0.0001997,2]
[359042581,1745670288261,-5444.76,0.0001997,2]
[359042582,1745670288292,-933.73,0.0001997,2]
[359042583,1745670288323,-400.0,0.0001997,2]
[359042584,1745670288353,-580.61,0.0001997,2]
[359042585,1745670288383,-400.0,0.0001997,2]
[359042586,1745670288414,-810.91,0.0001997,2]
[359042587,1745670288445,-680.77,0.0001997,2]
[359042588,1745670288474,-1139.11,0.0001997,2]
[359042589,1745670288504,-250.0,0.00019971,2]
[359042590,1745670288535,-200.0,0.00019971,2]
[359042591,1745670288565,-400.0,0.00019971,2]
[359042592,1745670288594,-593.78,0.00019971,2]
[359042593,1745670288622,-526.17562776,0.00019971,2]
[359042594,1745670288651,-985.44,0.00019971,2]
[359042595,1745670288680,-400.0,0.00019971,2]
[359042596,1745670288708,-400.0,0.00019971,2]
[359042597,1745670288735,-653.97,0.00019971,2]
[359042598,1745670288764,-400.0,0.00019971,2]
[359042599,1745670288793,-400.0,0.00019971,2]
[359042600,1745670288821,-1116.39,0.00019971,2]
[359042601,1745670288850,-446.17,0.00019971,2]
[359042602,1745670288878,-1151.47,0.00019971,2]
[359042603,1745670288907,-400.0,0.00019971,2]
[359042604,1745670288937,-672.67,0.00019971,2]
[359042605,1745670288965,-446.27344737,0.00019971,2]
[359042606,1745670288994,-478.38,0.00019971,2]
[359042607,1745670289023,-480.52,0.00019971,2]
[359042608,1745670289052,-400.0,0.00019971,2]
[359042609,1745670289080,-935.18,0.00019971,2]
[359042610,1745670289109,-1056.8,0.00019971,2]
[359042611,1745670289140,-400.0,0.00019971,2]
[359042612,1745670289174,-504.478993,0.00019971,2]
[359042613,1745670289206,-797.92,0.00019971,2]
[359042614,1745670289241,-400.0,0.00019971,2]
[359042615,1745670289553,-668.31,0.00019971,2]
[359042616,1745670289583,-400.0,0.00019971,2]
[359042617,1745670289612,-645.17,0.00019971,2]
[359042618,1745670289640,-400.0,0.00019971,2]
[359042619,1745670289668,-400.0,0.00019971,2]
[359042620,1745670289696,-125520.29,0.00019971,2]
[359042621,1745670289724,-400.0,0.00019971,2]
[359042622,1745670289752,-400.0,0.00019971,2]
[359042623,1745670289782,-616.95,0.00019971,2]
[359042624,1745670289810,-400.0,0.00019971,2]
[359042625,1745670289838,-1084.17,0.00019971,2]
[359042626,1745670289866,-400.0,0.00019971,2]
[359042627,1745670289895,-499.41,0.00019971,2]
[359042628,1745670289924,-627.86,0.00019971,2]
[359042629,1745670289951,-476.55,0.00019971,2]
[359042630,1745670289980,-400.0,0.00019971,2]
[359042631,1745670290008,-400.0,0.00019971,2]
[359042632,1745670290038,-400.0,0.00019971,2]
[359042633,1745670290066,-870.56,0.00019971,2]
[359042634,1745670290094,-730.53,0.00019971,2]
[359042635,1745670290123,-500.0,0.00019973,2]
[359042636,1745670290154,-400.0,0.00019984,2]
[359042637,1745670290183,-682.25,0.00019984,2]
[359042638,1745670290213,-400.0,0.00019984,2]
[359042639,1745670290243,-802.51,0.00019984,2]
[359042640,1745670290271,-400.0,0.00019984,2]
[359042641,1745670290299,-376.5461008,0.00019984,2]
[359042642,1745670290326,-400.0,0.00019984,2]
[359042643,1745670290354,-786.55,0.00019984,2]
[359042644,1745670290381,-400.0,0.00019984,2]
[359042645,1745670290411,-400.0,0.00019984,2]
[359042646,1745670290439,-437.33,0.00019984,2]
[359042647,1745670290467,-462.57,0.00019984,2]
[359042648,1745670290496,-1261.24,0.00019984,2]
[359042649,1745670290524,-400.0,0.00019984,2]
[359042650,1745670290555,-400.0,0.00019984,2]
[359042651,1745670290585,-835.59,0.00019984,2]
[359042652,1745670290614,-400.0,0.00019984,2]
[359042653,1745670290644,-400.0,0.00019984,2]
[359042654,1745670290673,-400.0,0.00019984,2]
[359042655,1745670290701,-937.3,0.00019984,2]
[359042656,1745670290730,-400.0,0.00019984,2]
[359042657,1745670290758,-433.98,0.00019984,2]
[359042658,1745670290787,-400.0,0.00019984,2]
[359042659,1745670290816,-400.0,0.00019984,2]
[359042660,1745670290844,-400.0,0.00019984,2]
[359042661,1745670290873,-654.64,0.00019984,2]
[359042662,1745670290901,-400.0,0.00019984,2]
[359042663,1745670290928,-400.0,0.00019984,2]
[359042664,1745670290956,-400.0,0.00019984,2]
[359042665,1745670290986,-400.0,0.00019984,2]
[359042666,1745670291016,-1324.82,0.00019984,2]
[359042667,1745670291045,-1110.73,0.00019985,2]
[359042668,1745670291075,-428.29551015,0.00019985,2]
[359042669,1745670291103,-400.0,0.00019985,2]
[359042670,1745670291131,-851.34,0.00019985,2]
[359042671,1745670291165,-405.46,0.00019985,2]
[359042672,1745670291209,-1363.6041313,0.00019985,2]
[359042673,1745670291221,-169.737325,0.00019985,2]
[359042674,1745670291238,-192.14581595,0.00019985,2]
[359042675,1745670291250,-3922.00844504,0.00019985,2]
[359042676,1745670291263,-679.27972419,0.00019985,2]
[359042677,1745670291280,-204.49793771,0.00019985,2]
[359042678,1745670291301,-300.0,0.00019985,2]
[359042679,1745670291326,-227.0,0.00019985,2]
[359042680,1745670291341,-4366.97,0.00019985,2]
[359042681,1745670291357,-470.04,0.00019985,2]
[359042682,1745670291382,-1563.70662081,0.00019985,2]
[359042683,1745670291392,-2107.42,0.00019985,2]
[359042684,1745670291402,-533.3,0.00019985,2]
[359042685,1745670291411,-1240.33337919,0.00019985,2]
[359042686,1745670291474,-933.73,0.00019985,2]
[359042687,1745670291557,-400.0,0.00019985,2]
[359042688,1745670291581,-400.0,0.00019984,2]
[359042689,1745670291591,-180.61,0.00019985,2]
[359042690,1745670291612,-400.0,0.00019985,2]
[359042691,1745670291624,-810.91,0.00019985,2]
[359042692,1745670291635,-680.77,0.00019985,2]
[359042693,1745670291648,-1139.11,0.00019985,2]
[359042694,1745670291664,-250.0,0.00019985,2]
[359042695,1745670291676,-200.0,0.00019985,2]
[359042696,1745670291687,-400.0,0.00019985,2]
[359042697,1745670291704,-294.75662081,0.00019985,2]
[359042698,1745670291713,-299.02337919,0.00019985,2]
[359042699,1745670291736,-100.97662081,0.00019985,2]
[359042700,1745670291746,-425.19900695,0.00019985,2]
[359042701,1745670291759,-319.87099305,0.00019985,2]
[359042702,1745670291769,-665.56900695,0.00019985,2]
[359042703,1745670291781,-44.63099305,0.00019985,2]
[359042704,1745670291791,-355.36900695,0.00019985,2]
[359042705,1745670291803,-44.63099305,0.00019985,2]
[359042706,1745670291813,-355.36900695,0.00019985,2]
[359042707,1745670291835,-44.63099305,0.00019985,2]
[359042708,1745670291845,-609.33900695,0.00019985,2]
[359042709,1745670291857,-168.32099305,0.00019985,2]
[359042710,1745670291867,-231.67900695,0.00019985,2]
[359042711,1745670291879,-400.0,0.00019985,2]
[359042712,1745670291891,-262.23099305,0.00019985,2]
[359042713,1745670291901,-689.21,0.00019985,2]
[359042714,1745670291911,-164.94900695,0.00019985,2]
[359042715,1745670291932,-235.05099305,0.00019985,2]
[359042716,1745670291942,-211.11900695,0.00019985,2]
[359042717,1745670291962,-444.18099305,0.00019985,2]
[359042718,1745670291974,-707.28900695,0.00019985,2]
[359042719,1745670291986,-5.22099305,0.00019985,2]
[359042720,1745670291996,-394.77900695,0.00019985,2]
[359042721,1745670292007,-5.22099305,0.00019985,2]
[359042722,1745670292016,-151.0,0.00019986,2]
[359042723,1745670292025,-151.0,0.00019986,2]
[359042724,1745670292035,-154.252741,0.00019986,2]
[359042725,1745670292044,-151.0,0.00019986,2]
[359042726,1745670292054,-60.19626595,0.00019986,2]
[359042727,1745670292071,-90.80373405,0.00019986,2]
[359042728,1745670292082,-151.0,0.00019986,2]
[359042729,1745670292092,-151.0,0.00019986,2]
[359042730,1745670292103,-53.46971332,0.00019986,2]
[359042731,1745670292115,-97.53028668,0.00019986,2]
[359042732,1745670292127,-151.0,0.00019986,2]
[359042733,1745670292138,-151.0,0.00019986,2]
[359042734,1745670292152,-78.84971332,0.00019986,2]
[359042735,1745670292168,-480.52,0.00019986,2]
[359042736,1745670292180,-278.36223558,0.00019986,2]
[359042737,1745670292191,-121.63776442,0.00019986,2]
[359042738,1745670292209,-309.22348758,0.00019986,2]
[359042739,1745670292220,-430.861252,0.00019986,2]
[359042740,1745670292231,-195.09526042,0.00019986,2]
[359042741,1745670292243,-235.76599158,0.00019986,2]
[359042742,1745670292254,-430.861252,0.00019986,2]
[359042743,1745670292263,-151.0,0.00019986,2]
[359042744,1745670292273,-151.0,0.00019986,2]
[359042745,1745670292283,-88.17275642,0.00019986,2]
[359042746,1745670292299,-62.82724358,0.00019986,2]
[359042747,1745670292309,-337.17275642,0.00019986,2]
[359042748,1745670292322,-504.478993,0.00019986,2]
[359042749,1745670292344,-797.92,0.00019986,2]
[359042750,1745670292378,-55.93225058,0.00019986,2]
[359042751,1745670292407,-151.0,0.00019986,2]
[359042752,1745670292436,-151.0,0.00019986,2]
[359042753,1745670292464,-151.0,0.00019986,2]
[359042754,1745670292493,-240.592076,0.00019986,2]
[359042755,1745670292524,-501.342283,0.00019986,2]
[359042756,1745670292553,-501.342283,0.00019986,2]
[359042757,1745670292581,-501.342283,0.00019986,2]
[359042758,1745670292609,-1211.4016229,0.00019986,2]
[359042759,1745670292637,-501.342283,0.00019986,2]
[359042760,1745670292665,-150.0,0.00019997,2]
[359042761,1745670292693,-150.0,0.00019997,2]
[359042762,1745670292722,-500.0,0.00019997,2]
[359042763,1745670292750,-150.0,0.00019997,2]
[359042764,1745670292779,-150.0,0.00019997,2]
[359042765,1745670292806,-151.0,0.00019998,2]
[359042766,1745670292834,-151.0,0.00019998,2]
[359042767,1745670292863,-150.0,0.00019998,2]
[359042768,1745670292894,-150.0,0.00019998,2]
[359042769,1745670292924,-430.861252,0.00019998,2]
[359042770,1745670292951,-430.861252,0.00019998,2]
[359042771,1745670292979,-151.0,0.00019998,2]
[359042772,1745670293006,-151.0,0.00019998,2]
[359042773,1745670293035,-501.342283,0.00019998,2]
[359042774,1745670293064,-501.342283,0.00019998,2]
[359042775,1745670293091,-1169.0,0.00019999,2]
[359042776,1745670293119,-300.0,0.00019999,2]
[359042777,1745670293150,-500.0,0.00019999,2]
[359042778,1745670293179,-151.0,0.00019999,2]
[359042779,1745670293207,-430.861252,0.00019999,2]
[359042780,1745670293235,-430.861252,0.00019999,2]
[359042781,1745670293264,-151.0,0.00019999,2]
[359042782,1745670293560,-400.0,0.00019999,2]
[359042783,1745670293590,-151.0,0.00019999,2]
[359042784,1745670293620,-500.97,0.00019999,2]
[359042785,1745670293648,-662.57,0.00019999,2]
[359042786,1745670293676,-525.59,0.00019999,2]
[359042787,1745670293705,-400.0,0.00019999,2]
[359042788,1745670293733,-501.342283,0.00019999,2]
[359042789,1745670293761,-501.342283,0.00019999,2]
[359042790,1745670293789,-934.95,0.00019999,2]
[359042791,1745670293818,-400.0,0.00019999,2]
[359042792,1745670293846,-1052.42,0.00019999,2]
[359042793,1745670293873,-500.0,0.00019999,2]
[359042794,1745670293902,-704.94,0.00019999,2]
[359042795,1745670293933,-500.0,0.00019999,2]
[359042796,1745670293961,-214.95382749,0.00019999,2]
[359042797,1745670293991,-197.39822412,0.00019999,2]
[359042798,1745670294019,-197.59541965,0.00019999,2]
[359042799,1745670294049,-500.0,0.00019999,2]
[359042800,1745670294078,-159.50324597,0.00019999,2]
[359042801,1745670294109,-521.79000413,0.00019999,2]
[359042802,1745670294139,-500.0,0.00019999,2]
[359042803,1745670294589,-400.0,0.0002,2]
[359042804,1745670294665,-668.31,0.0002,2]
[359042805,1745670294724,-400.0,0.0002,2]
[359042806,1745670294741,-645.17,0.0002,2]
[359042807,1745670294753,-400.0,0.0002,2]
[359042808,1745670294769,-400.0,0.0002,2]
[359042809,1745670294791,-125520.29,0.0002,2]
[359042810,1745670294803,-400.0,0.0002,2]
[359042811,1745670294814,-400.0,0.0002,2]
[359042812,1745670294831,-616.95,0.0002,2]
[359042813,1745670294848,-400.0,0.0002,2]
[359042814,1745670294866,-400.0,0.00019971,2]
[359042815,1745670294875,-684.17,0.0002,2]
[359042816,1745670294887,-400.0,0.0002,2]
[359042817,1745670294902,-499.41,0.0002,2]
[359042818,1745670294919,-627.86,0.0002,2]
[359042819,1745670294931,-476.55,0.0002,2]
[359042820,1745670294942,-400.0,0.0002,2]
[359042821,1745670294958,-400.0,0.0002,2]
[359042822,1745670294970,-400.0,0.0002,2]
[359042823,1745670294987,-870.56,0.0002,2]
[359042824,1745670295003,-730.53,0.0002,2]
[359042825,1745670295015,-500.0,0.0002,2]
[359042826,1745670295027,-400.0,0.0002,2]
[359042827,1745670295044,-682.25,0.0002,2]
[359042828,1745670295061,-400.0,0.0002,2]
[359042829,1745670295072,-802.51,0.0002,2]
[359042830,1745670295083,-400.0,0.0002,2]
[359042831,1745670295100,-376.5461008,0.0002,2]
[359042832,1745670295120,-400.0,0.0002,2]
[359042833,1745670295132,-786.55,0.0002,2]
[359042834,1745670295147,-400.0,0.0002,2]
[359042835,1745670295161,-400.0,0.0002,2]
[359042836,1745670295178,-437.33,0.0002,2]
[359042837,1745670295199,-462.57,0.0002,2]
[359042838,1745670295220,-1261.24,0.0002,2]
[359042839,1745670295238,-400.0,0.0002,2]
[359042840,1745670295257,-400.0,0.0002,2]
[359042841,1745670295269,-835.59,0.0002,2]
[359042842,1745670295281,-400.0,0.0002,2]
[359042843,1745670295293,-400.0,0.0002,2]
[359042844,1745670295305,-400.0,0.0002,2]
[359042845,1745670295321,-937.3,0.0002,2]
[359042846,1745670295332,-400.0,0.0002,2]
[359042847,1745670295349,-433.98,0.0002,2]
[359042848,1745670295398,-400.0,0.0002,2]
[359042849,1745670295466,-400.0,0.0002,2]
[359042850,1745670295478,-400.0,0.0002,2]
[359042851,1745670295490,-654.64,0.0002,2]
[359042852,1745670295507,-400.0,0.0002,2]
[359042853,1745670295576,-400.0,0.0002,2]
[359042854,1745670295627,-400.0,0.0002,2]
[359042855,1745670295638,-400.0,0.0002,2]
[359042856,1745670295655,-1324.82,0.0002,2]
[359042857,1745670295679,-309.258224,0.00019986,2]
[359042858,1745670295689,-801.471776,0.0002,2]
[359042859,1745670295701,-428.29551015,0.0002,2]
[359042860,1745670295714,-400.0,0.0002,2]
[359042861,1745670295732,-851.34,0.0002,2]
[359042862,1745670295744,-405.46,0.0002,2]
[359042863,1745670295785,-2443.53888346,0.0002,2]
[359042864,1745670295876,-309.258224,0.00019986,2]
[359042865,1745670296053,-55.93225058,0.00019984,2]
[359042866,1745670296070,-151.0,0.00019984,2]
[359042867,1745670296082,-151.0,0.00019984,2]
[359042868,1745670296099,-42.06774942,0.00019984,2]
[359042869,1745670296109,-108.93225058,0.00019998,2]
[359042870,1745670296121,-200.32597342,0.00019998,2]
[359042871,1745670296131,-40.26610258,0.00019999,2]
[359042872,1745670296146,-245.26423752,0.00019999,2]
[359042873,1745670296156,-256.07804548,0.00019999,2]
[359042874,1745670296172,-53.18017852,0.00019999,2]
[359042875,1745670296184,-448.16210448,0.0002,2]
[359042876,1745670296206,-501.342283,0.0002,2]
[359042877,1745670296286,-1211.4016229,0.0002,2]
[359042878,1745670296330,-501.342283,0.0002,2]
[359042879,1745670296347,-150.0,0.0002,2]
[359042880,1745670296358,-150.0,0.0002,2]
[359042881,1745670296374,-500.0,0.0002,2]
[359042882,1745670296388,-150.0,0.0002,2]
[359042883,1745670296405,-150.0,0.0002,2]
[359042884,1745670296416,-151.0,0.0002,2]
[359042885,1745670296432,-151.0,0.0002,2]
[359042886,1745670296458,-150.0,0.0002,2]
[359042887,1745670296475,-150.0,0.0002,2]
[359042888,1745670296490,-430.861252,0.0002,2]
[359042889,1745670296524,-430.861252,0.0002,2]
[359042890,1745670296604,-151.0,0.0002,2]
[359042891,1745670296628,-151.0,0.0002,2]
[359042892,1745670296688,-501.342283,0.0002,2]
[359042893,1745670296739,-501.342283,0.0002,2]
[359042894,1745670296757,-1169.0,0.0002,2]
[359042895,1745670296778,-300.0,0.0002,2]
[359042896,1745670297075,-500.0,0.0002,2]
[359042897,1745670297089,-151.0,0.0002,2]
[359042898,1745670297101,-430.861252,0.0002,2]
[359042899,1745670297113,-430.861252,0.0002,2]
[359042900,1745670297127,-151.0,0.0002,2]
[359042901,1745670297145,-400.0,0.0002,2]
[359042902,1745670297349,-151.0,0.0002,2]
[359042903,1745670297360,-500.97,0.0002,2]
[359042904,1745670297373,-662.57,0.0002,2]
[359042905,1745670297389,-525.59,0.0002,2]
[359042906,1745670297401,-400.0,0.0002,2]
[359042907,1745670297413,-501.342283,0.0002,2]
[359042908,1745670297424,-501.342283,0.0002,2]
[359042909,1745670297436,-934.95,0.0002,2]
[359042910,1745670297459,-400.0,0.0002,2]
[359042911,1745670297470,-1052.42,0.0002,2]
[359042912,1745670297486,-500.0,0.0002,2]
[359042913,1745670297497,-704.94,0.0002,2]
[359042914,1745670297508,-500.0,0.0002,2]
[359042915,1745670297520,-214.95382749,0.0002,2]
[359042916,1745670297533,-197.39822412,0.0002,2]
[359042917,1745670297545,-197.59541965,0.0002,2]
[359042918,1745670297557,-500.0,0.0002,2]
[359042919,1745670297597,-159.50324597,0.0002,2]
[359042920,1745670297657,-521.79000413,0.0002,2]
[359042921,1745670297696,-500.0,0.0002,2]
[359042922,1745670297708,-346879.44511432,0.0002,2]
[359042923,1745670298092,-309.258224,0.00019971,2]
[359042924,1745670298104,-502.741776,0.00019971,2]
[359042925,1745670298115,-172321.65267081,0.0002,2]
[359042926,1745670298131,-452.40084141,0.0002,2]
[359042927,1745670298145,-214971.71326378,0.0002,2]
[359042928,1745670324454,-1090.883305,0.00019799,2]
[359042929,1745670324483,-189.57488143,0.000198,2]
[359042930,1745670324511,-300.0,0.0001997,2]
[359042931,1745670324541,-400.0,0.0001997,2]
[359042932,1745670324572,-400.0,0.0001997,2]
[359042933,1745670324601,-657.98,0.00019971,2]
[359042934,1745670324631,-400.0,0.00019971,2]
[359042935,1745670324660,-400.0,0.00019971,2]
[359042936,1745670324689,-400.0,0.00019971,2]
[359042937,1745670324718,-400.0,0.00019971,2]
[359042938,1745670324747,-1244.74,0.00019971,2]
[359042939,1745670324775,-792.32,0.00019971,2]
[359042940,1745670324803,-400.0,0.00019971,2]
[359042941,1745670324832,-613.08,0.00019971,2]
[359042942,1745670324861,-648.59,0.00019971,2]
[359042943,1745670324891,-400.0,0.00019971,2]
[359042944,1745670324923,-400.0,0.00019971,2]
[359042945,1745670324952,-500.0,0.00019973,2]
[359042946,1745670324982,-501.29544339,0.00019973,2]
[359042947,1745670325011,-500.0,0.00019973,2]
[359042948,1745670325040,-400.0,0.00019984,2]
[359042949,1745670325068,-429.73,0.00019984,2]
[359042950,1745670325097,-400.0,0.00019984,2]
[359042951,1745670325126,-501.65337988,0.00019984,2]
[359042952,1745670325154,-400.0,0.00019984,2]
[359042953,1745670325184,-400.0,0.00019984,2]
[359042954,1745670325212,-213.70349292,0.00019984,2]
[359042955,1745670325240,-400.0,0.00019984,2]
[359042956,1745670325269,-362.90037065,0.00019984,2]
[359042957,1745670325298,-400.0,0.00019984,2]
[359042958,1745670325328,-625.49,0.00019984,2]
[359042959,1745670325355,-400.0,0.00019984,2]
[359042960,1745670325385,-400.0,0.00019984,2]
[359042961,1745670325413,-905.06,0.00019984,2]
[359042962,1745670325442,-503.21,0.00019985,2]
[359042963,1745670325470,-400.0,0.00019985,2]
[359042964,1745670325500,-400.0,0.00019985,2]
[359042965,1745670325530,-526.92,0.00019985,2]
[359042966,1745670325560,-400.0,0.00019985,2]
[359042967,1745670325589,-400.0,0.00019985,2]
[359042968,1745670325618,-4367.2,0.00019985,2]
[359042969,1745670325647,-400.0,0.00019985,2]
[359042970,1745670325676,-309.258224,0.00019986,2]
[359042971,1745670325706,-309.258224,0.00019986,2]
[359042972,1745670325734,-151.0,0.00019986,2]
[359042973,1745670325762,-151.0,0.00019986,2]
[359042974,1745670325789,-151.0,0.00019986,2]
[359042975,1745670325817,-151.0,0.00019986,2]
[359042976,1745670325845,-153.946413,0.00019986,2]
[359042977,1745670325874,-151.0,0.00019986,2]
[359042978,1745670325902,-151.0,0.00019986,2]
[359042979,1745670325932,-309.258224,0.00019998,2]
[359042980,1745670325963,-300.0,0.00019998,2]
[359042981,1745670325991,-1200.0,0.00019998,2]
[359042982,1745670326018,-151.0,0.00019998,2]
[359042983,1745670326046,-151.0,0.00019998,2]